{"text_format":"3","workbook":"xlsx","n_sheets":1,"sheets":["Wydatków"],"not_rendered":{"defined_names":1},"read":"whole","date_system":"1900"}

{"sheet":"Wydatków","index":0,"n_rows":30,"n_cols":6,"rows_kept":30,"merged":[[0,1,0,2],[1,1,1,2]]}
[null,"Budżet wydatków",{"$nulls":3},{"$f":"NOW()","v":"2012-05-24T17:47:12.030"}]
[null,"Nazwa firmy"]
[]
[null,"Personel","Budżet","Rzeczywiste","Różnica (zł)","Różnica (%)"]
[null,"Biuro",null,null,{"$f":"SUM(Table1[Budżet]-Table1[Rzeczywiste])","v":0},{"$f":"IFERROR(SUM(Table1[Różnica (zł)]/Table1[Budżet]),\"\")","v":""}]
[null,"Sklep",null,null,{"$f":"SUM(Table1[Budżet]-Table1[Rzeczywiste])","v":0},{"$f":"IFERROR(SUM(Table1[Różnica (zł)]/Table1[Budżet]),\"\")","v":""}]
[null,"Sprzedawcy",null,null,{"$f":"SUM(Table1[Budżet]-Table1[Rzeczywiste])","v":0},{"$f":"IFERROR(SUM(Table1[Różnica (zł)]/Table1[Budżet]),\"\")","v":""}]
[null,"Inne",null,null,{"$f":"SUM(Table1[Budżet]-Table1[Rzeczywiste])","v":0},{"$f":"IFERROR(SUM(Table1[Różnica (zł)]/Table1[Budżet]),\"\")","v":""}]
[]
[null,"Operacyjne","Budżet","Rzeczywiste","Różnica (zł)","Różnica (%)"]
[null,"Reklama",null,null,{"$f":"SUM(Table2[Budżet]-Table2[Rzeczywiste])","v":0},{"$f":"IFERROR(SUM(Table2[Różnica (zł)]/Table2[Budżet]),\"\")","v":""}]
[null,"Długi",null,null,{"$f":"SUM(Table2[Budżet]-Table2[Rzeczywiste])","v":0},{"$f":"IFERROR(SUM(Table2[Różnica (zł)]/Table2[Budżet]),\"\")","v":""}]
[null,"Zyski",null,null,{"$f":"SUM(Table2[Budżet]-Table2[Rzeczywiste])","v":0},{"$f":"IFERROR(SUM(Table2[Różnica (zł)]/Table2[Budżet]),\"\")","v":""}]
[null,"Materiały",null,null,{"$f":"SUM(Table2[Budżet]-Table2[Rzeczywiste])","v":0},{"$f":"IFERROR(SUM(Table2[Różnica (zł)]/Table2[Budżet]),\"\")","v":""}]
[null,"Opłaty pocztowe",null,null,{"$f":"SUM(Table2[Budżet]-Table2[Rzeczywiste])","v":0},{"$f":"IFERROR(SUM(Table2[Różnica (zł)]/Table2[Budżet]),\"\")","v":""}]
[null,"Wynajem lub hipoteka",null,null,{"$f":"SUM(Table2[Budżet]-Table2[Rzeczywiste])","v":0},{"$f":"IFERROR(SUM(Table2[Różnica (zł)]/Table2[Budżet]),\"\")","v":""}]
[null,"Wydatki związane ze sprzedażą",null,null,{"$f":"SUM(Table2[Budżet]-Table2[Rzeczywiste])","v":0},{"$f":"IFERROR(SUM(Table2[Różnica (zł)]/Table2[Budżet]),\"\")","v":""}]
[null,"Podatki",null,null,{"$f":"SUM(Table2[Budżet]-Table2[Rzeczywiste])","v":0},{"$f":"IFERROR(SUM(Table2[Różnica (zł)]/Table2[Budżet]),\"\")","v":""}]
[null,"Koszty eksploatacji",null,null,{"$f":"SUM(Table2[Budżet]-Table2[Rzeczywiste])","v":0},{"$f":"IFERROR(SUM(Table2[Różnica (zł)]/Table2[Budżet]),\"\")","v":""}]
[null,"Inne",null,null,{"$f":"SUM(Table2[Budżet]-Table2[Rzeczywiste])","v":0},{"$f":"IFERROR(SUM(Table2[Różnica (zł)]/Table2[Budżet]),\"\")","v":""}]
[null,"Ubezpieczenie",null,null,{"$f":"SUM(Table2[Budżet]-Table2[Rzeczywiste])","v":0},{"$f":"IFERROR(SUM(Table2[Różnica (zł)]/Table2[Budżet]),\"\")","v":""}]
[null,"Odsetki",null,null,{"$f":"SUM(Table2[Budżet]-Table2[Rzeczywiste])","v":0},{"$f":"IFERROR(SUM(Table2[Różnica (zł)]/Table2[Budżet]),\"\")","v":""}]
[null,"Telefon",null,null,{"$f":"SUM(Table2[Budżet]-Table2[Rzeczywiste])","v":0},{"$f":"IFERROR(SUM(Table2[Różnica (zł)]/Table2[Budżet]),\"\")","v":""}]
[null,"Konserwacja i naprawy",null,null,{"$f":"SUM(Table2[Budżet]-Table2[Rzeczywiste])","v":0},{"$f":"IFERROR(SUM(Table2[Różnica (zł)]/Table2[Budżet]),\"\")","v":""}]
[null,"Opłaty prawne",null,null,{"$f":"SUM(Table2[Budżet]-Table2[Rzeczywiste])","v":0},{"$f":"IFERROR(SUM(Table2[Różnica (zł)]/Table2[Budżet]),\"\")","v":""}]
[null,"Amortyzacja",null,null,{"$f":"SUM(Table2[Budżet]-Table2[Rzeczywiste])","v":0},{"$f":"IFERROR(SUM(Table2[Różnica (zł)]/Table2[Budżet]),\"\")","v":""}]
[null,"Wysyłka",null,null,{"$f":"SUM(Table2[Budżet]-Table2[Rzeczywiste])","v":0},{"$f":"IFERROR(SUM(Table2[Różnica (zł)]/Table2[Budżet]),\"\")","v":""}]
[null,"Magazyn",null,null,{"$f":"SUM(Table2[Budżet]-Table2[Rzeczywiste])","v":0},{"$f":"IFERROR(SUM(Table2[Różnica (zł)]/Table2[Budżet]),\"\")","v":""}]
[null,"Inne",null,null,{"$f":"SUM(Table2[Budżet]-Table2[Rzeczywiste])","v":0},{"$f":"IFERROR(SUM(Table2[Różnica (zł)]/Table2[Budżet]),\"\")","v":""}]
[null,"Suma wydatków",{"$f":"SUM(Table1[Budżet],Table2[Budżet])","v":0},{"$f":"SUM(Table1[Rzeczywiste],Table2[Rzeczywiste])","v":0},{"$f":"SUM(Table1[Różnica (zł)],Table2[Różnica (zł)])","v":0},{"$f":"IFERROR(SUM(Table2[[#Totals],[Różnica (zł)]]/Table2[[#Totals],[Budżet]]),\"\")","v":""}]